lending/lending_fUSD_20250316
["ID","MTS","AMOUNT","RATE_DAILY","PERIOD"]
[356235296,1742115039787,-2032.06228768,0.00046199,2]
[356235297,1742115039796,-25390.92,0.00046273,8]
[356235298,1742115039806,-561.94448406,0.00046299,120]
[356235299,1742115039815,-500.0,0.00046299,120]
[356235300,1742115039825,-500.0,0.00046299,120]
[356235301,1742115039834,-500.0,0.00046299,120]
[356235302,1742115039844,-622.5,0.00046299,120]
[356235303,1742115039853,-1021.12774691,0.000463,120]
[356235304,1742115039862,-508.93975766,0.00046301,120]
[356235305,1742115039872,-500.0,0.00046573,120]
[356235306,1742115039881,-500.0,0.00046573,120]
[356235307,1742115039891,-500.0,0.00046573,120]
[356235308,1742115039900,-622.5,0.00046573,120]
[356235309,1742115039910,-43321.19,0.000466,8]
[356235310,1742115039920,-15415.37132187,0.000466,8]
[356235311,1742115039932,-2943.84242347,0.000466,8]
[356235312,1742115039943,-5508.92049053,0.000466,8]
[356235313,1742115040570,-211.16617407,0.000466,8]
[356235314,1742115040582,-4266.85959006,0.000466,8]
[356235315,1742115040592,-5245.08,0.000466,8]
[356235316,1742115040602,-677.1755832,0.0004668,120]
[356235317,1742115040612,-161.0,0.000468,120]
[356235318,1742115040622,-500.0,0.00046847,120]
[356235319,1742115040631,-486.7205421,0.00046847,120]
[356235320,1742115040643,-13.2794579,0.00046847,120]
[356235321,1742115040652,-500.0,0.00046847,120]
[356235322,1742115040662,-622.5,0.00046847,120]
[356235323,1742115040671,-628.0,0.00046848,7]
[356235324,1742115040680,-531.05243414,0.000469,120]
[356235325,1742115040691,-500.0,0.00046998,120]
[356235326,1742115040701,-500.0,0.00046998,120]
[356235327,1742115040711,-500.0,0.00046998,120]
[356235328,1742115040721,-500.0,0.00046998,120]
[356235329,1742115040730,-316.48951796,0.00046998,120]
[356235330,1742115040740,-500.0,0.00046998,120]
[356235331,1742115040749,-500.0,0.00046998,120]
[356235332,1742115040758,-500.0,0.00046998,120]
[356235333,1742115040768,-500.0,0.00046998,120]
[356235334,1742115040777,-500.0,0.00046998,120]
[356235335,1742115040787,-500.0,0.00046998,120]
[356235336,1742115040796,-500.0,0.00046998,120]
[356235337,1742115040805,-548.93,0.00046998,2]
[356235338,1742115040814,-500.0,0.00046998,120]
[356235339,1742115040824,-367.30098004,0.00046998,120]
[356235340,1742115040833,-500.0,0.00046998,100]
[356235341,1742115040842,-500.0,0.00046998,120]
[356235342,1742115040851,-500.0,0.00046998,120]
[356235343,1742115040861,-500.0,0.00046998,120]
[356235344,1742115040871,-500.0,0.00046998,120]
[356235345,1742115040880,-500.0,0.00046998,120]
[356235346,1742115040889,-500.0,0.00046998,120]
[356235347,1742115040899,-500.0,0.00046999,120]
[356235348,1742115040909,-500.0,0.00046999,2]
[356235349,1742115040919,-500.0,0.00046999,120]
[356235350,1742115040928,-500.0,0.00046999,120]
[356235351,1742115040938,-500.0,0.00046999,120]
[356235352,1742115040948,-500.0,0.00046999,120]
[356235353,1742115040956,-500.0,0.00046999,120]
[356235354,1742115040966,-502.38993845,0.00046999,120]
[356235355,1742115040975,-500.0,0.00046999,120]
[356235356,1742115040985,-500.0,0.00046999,120]
[356235357,1742115040994,-500.0,0.00046999,7]
[356235358,1742115041004,-500.0,0.00046999,120]
[356235359,1742115041013,-500.0,0.00046999,120]
[356235360,1742115041022,-500.0,0.00046999,120]
[356235361,1742115041031,-500.0,0.00046999,120]
[356235362,1742115041041,-500.0,0.00046999,120]
[356235363,1742115041050,-500.0,0.00046999,120]
[356235364,1742115041059,-3041.58381051,0.00047,47]
[356235365,1742115041071,-395.472,0.00047,47]
[356235366,1742115041083,-9844.91276998,0.00047,47]
[356235367,1742115041095,-305.0000025,0.00047,47]
[356235368,1742115041107,-1983.63196406,0.00047,47]
[356235369,1742115041119,-2666.2,0.00047,47]
[356235370,1742115041131,-652.01062997,0.00047,47]
[356235371,1742115041142,-1540.02928545,0.00047,47]
[356235372,1742115041158,-29571.15953753,0.00047,47]
[356235374,1742115041366,-150.0,0.00047,120]
[356235375,1742115041376,-252.475962,0.00047,30]
[356235376,1742115041385,-1000.0,0.00047,20]
[356235377,1742115041394,-1009.0,0.00047,18]
[356235378,1742115041404,-150.0,0.000471,120]
[356235379,1742115041418,-235.34119,0.000471,120]
[356235380,1742115041427,-500.0,0.00047121,120]
[356235381,1742115041436,-500.0,0.00047121,120]
[356235382,1742115041446,-500.0,0.00047121,120]
[356235383,1742115041455,-622.5,0.00047121,120]
[356235384,1742115041464,-906.413,0.0004718,90]
[356235385,1742115041474,-14675.61031047,0.00047246,8]
[356235386,1742115041485,-5994.67182315,0.00047246,8]
[356235387,1742115041497,-1183.40597435,0.00047246,8]
[356235388,1742115041508,-575.79499796,0.00047246,8]
[356235389,1742115041519,-1265.24676382,0.00047246,8]
[356235390,1742115041531,-259.71546597,0.00047246,8]
[356235392,1742115043350,-846.0,0.00047246,8]
[356235393,1742115043362,-495.58079881,0.00047246,8]
[356235395,1742115043402,-1450.31865778,0.00047246,8]
[356235396,1742115043456,-541.54300055,0.00047246,8]
[356235397,1742115043468,-537.35,0.00047246,8]
[356235398,1742115043479,-1521.37801986,0.00047246,8]
[356235399,1742115043510,-296.21242944,0.00047246,8]
[356235400,1742115043564,-81001.82153273,0.00047246,8]
[356235401,1742115043576,-2051.26122649,0.00047246,8]
[356235402,1742115043587,-3174.91835236,0.00047246,8]
[356235403,1742115043620,-1416.44844237,0.00047246,8]
[356235404,1742115043632,-1711.87058023,0.00047246,8]
[356235419,1742115044844,-1558.87142926,0.00047246,8]
[356235420,1742115044855,-443.4506406,0.00047246,8]
[356235421,1742115044867,-4245.38351898,0.00047246,8]
[356235422,1742115044878,-4200.04995,0.00047246,8]
[356235423,1742115046343,-1051.96977662,0.00045,18]
[356235424,1742115046399,-130.03022338,0.00045,18]
[356235425,1742115046411,-594.97552424,0.00047246,8]
[356235426,1742115046423,-8150.95787752,0.00047246,8]
[356235427,1742115046435,-70406.61268306,0.00047246,8]
[356235428,1742115046445,-500.0,0.00047272,120]
[356235429,1742115046456,-500.0,0.00047272,120]
[356235430,1742115046466,-500.0,0.00047272,120]
[356235431,1742115046476,-500.0,0.00047272,120]
[356235432,1742115046486,-500.0,0.00047272,120]
[356235433,1742115046496,-500.0,0.00047272,120]
[356235434,1742115046506,-500.0,0.00047272,120]
[356235435,1742115046516,-500.0,0.00047272,120]
[356235436,1742115046525,-500.0,0.00047272,120]
[356235437,1742115046536,-500.0,0.00047272,120]
[356235438,1742115046546,-500.0,0.00047272,120]
[356235439,1742115046555,-548.93,0.00047272,2]
[356235440,1742115046565,-500.0,0.00047272,120]
[356235441,1742115046575,-500.0,0.00047272,100]
[356235442,1742115046585,-456.75523762,0.00047272,120]
[356235443,1742115046595,-500.0,0.00047272,120]
[356235444,1742115046604,-500.0,0.00047272,120]
[356235445,1742115046615,-500.0,0.00047272,120]
[356235446,1742115046624,-500.0,0.00047272,120]
[356235447,1742115046634,-500.0,0.00047272,120]
[356235448,1742115046644,-500.0,0.00047273,120]
[356235449,1742115046655,-500.0,0.00047273,2]
[356235450,1742115046664,-500.0,0.00047273,120]
[356235451,1742115046674,-500.0,0.00047273,120]
[356235452,1742115046684,-500.0,0.00047273,120]
[356235453,1742115046695,-500.0,0.00047273,120]
[356235454,1742115046705,-344.75752202,0.00047273,120]
[356235455,1742115046716,-500.0,0.00047273,120]
[356235456,1742115046726,-500.0,0.00047273,120]
[356235457,1742115046736,-500.0,0.00047273,7]
[356235458,1742115046746,-500.0,0.00047273,120]
[356235459,1742115046755,-500.0,0.00047273,120]
[356235460,1742115046765,-500.0,0.00047273,120]
[356235462,1742115046775,-500.0,0.00047273,120]
[356235463,1742115046785,-500.0,0.00047273,120]
[356235464,1742115046794,-500.0,0.00047273,120]
[356235465,1742115046804,-500.0,0.00047395,120]
[356235466,1742115046814,-500.0,0.00047395,120]
[356235467,1742115046825,-324.32397977,0.00047395,120]
[356235468,1742115046835,-622.5,0.00047395,120]
[356235469,1742115046846,-17205.1584351,0.00047413,3]
[356235470,1742115046856,-1000.0,0.00047425,2]
[356235471,1742115046865,-217.37286961,0.000475,120]
[356235472,1742115046875,-1000.0,0.000475,120]
[356235473,1742115046885,-500.0,0.00047546,120]
[356235474,1742115046895,-500.0,0.00047546,120]
[356235476,1742115046904,-500.0,0.00047546,120]
[356235477,1742115046914,-500.0,0.00047546,120]
[356235478,1742115046923,-500.0,0.00047546,120]
[356235479,1742115046932,-500.0,0.00047546,120]
[356235480,1742115046942,-500.0,0.00047546,120]
[356235481,1742115046951,-500.0,0.00047546,120]
[356235482,1742115046960,-500.0,0.00047546,120]
[356235483,1742115046969,-500.0,0.00047546,120]
[356235484,1742115046978,-500.0,0.00047546,120]
[356235485,1742115046988,-548.93,0.00047546,2]
[356235486,1742115046998,-500.0,0.00047546,120]
[356235487,1742115047008,-500.0,0.00047546,100]
[356235488,1742115047018,-253.81378183,0.00047546,120]
[356235489,1742115047028,-500.0,0.00047546,120]
[356235490,1742115047038,-500.0,0.00047546,120]
[356235491,1742115047049,-500.0,0.00047546,120]
[356235492,1742115047059,-500.0,0.00047546,120]
[356235493,1742115047068,-500.0,0.00047547,120]
[356235494,1742115047079,-169.85519852,0.00047547,2]
[356235495,1742115047089,-500.0,0.00047547,120]
[356235496,1742115047100,-500.0,0.00047547,120]
[356235497,1742115047110,-500.0,0.00047547,120]
[356235498,1742115047121,-500.0,0.00047547,120]
[356235499,1742115047132,-500.0,0.00047547,120]
[356235500,1742115047141,-500.0,0.00047547,120]
[356235501,1742115047151,-500.0,0.00047547,7]
[356235502,1742115047161,-500.0,0.00047547,120]
[356235503,1742115047171,-352.83985712,0.00047547,120]
[356235504,1742115047181,-500.0,0.00047547,120]
[356235505,1742115047191,-500.0,0.00047547,120]
[356235506,1742115047200,-500.0,0.00047547,120]
[356235507,1742115047210,-500.0,0.00047547,120]
[356235508,1742115047219,-17205.1584351,0.0004759,3]
[356235509,1742115047229,-5208.40230564,0.000476,2]
[356235510,1742115047239,-1193.52263586,0.000476,120]
[356235511,1742115047249,-500.0,0.00047669,120]
[356235512,1742115047260,-500.0,0.00047669,120]
[356235513,1742115047270,-622.5,0.00047669,120]
[356235514,1742115047281,-17205.1584351,0.0004769,3]
[356235515,1742115047290,-2000.0,0.000477,120]
[356235516,1742115047301,-2000.0,0.000477,120]
[356235517,1742115047311,-462.0,0.000477,120]
[356235518,1742115047321,-2694.82006788,0.00047701,73]
[356235519,1742115047331,-1800.0,0.000478,17]
[356235520,1742115047341,-500.0,0.0004782,120]
[356235521,1742115047352,-500.0,0.0004782,120]
[356235522,1742115047361,-500.0,0.0004782,120]
[356235523,1742115047371,-500.0,0.0004782,120]
[356235524,1742115047380,-500.0,0.0004782,120]
[356235525,1742115047390,-500.0,0.0004782,120]
[356235526,1742115047399,-155.63110767,0.0004782,120]
[356235527,1742115047411,-500.0,0.0004782,120]
[356235528,1742115047421,-500.0,0.0004782,120]
[356235529,1742115047431,-364.48299516,0.0004782,120]
[356235530,1742115047441,-458.65971708,0.0004782,120]
[356235531,1742115047450,-548.93,0.0004782,2]
[356235532,1742115047461,-500.0,0.0004782,120]
[356235533,1742115047471,-500.0,0.0004782,100]
[356235534,1742115047482,-500.0,0.0004782,120]
[356235535,1742115047491,-500.0,0.0004782,120]
[356235536,1742115047501,-500.0,0.0004782,120]
[356235537,1742115047510,-500.0,0.0004782,120]
[356235538,1742115047520,-500.0,0.00047821,120]
[356235539,1742115047530,-500.0,0.00047821,120]
[356235540,1742115047540,-500.0,0.00047821,120]
[356235541,1742115047550,-500.0,0.00047821,120]
[356235542,1742115047560,-500.0,0.00047821,120]
[356235543,1742115047570,-383.97814393,0.00047821,120]
[356235544,1742115047580,-500.0,0.00047821,120]
[356235545,1742115047589,-500.0,0.00047821,7]
[356235546,1742115047599,-500.0,0.00047821,120]
[356235547,1742115047608,-500.0,0.00047821,120]
[356235548,1742115047618,-500.0,0.00047821,120]
[356235549,1742115047627,-500.0,0.00047821,120]
[356235550,1742115047636,-500.0,0.00047821,120]
[356235551,1742115047646,-636.48741503,0.000479,120]
[356235552,1742115047655,-173.74482788,0.000479,30]
[356235553,1742115047664,-3603.83736066,0.000479,17]
[356235554,1742115047730,-96.16263934,0.000479,17]
[356235555,1742115047740,-4816.55327308,0.00047905,4]
[356235556,1742115047752,-1627.2,0.00047905,4]
[356235557,1742115047763,-576.70999178,0.00047905,4]
[356235558,1742115047775,-1104.89183922,0.00047905,4]
[356235559,1742115047786,-432.00902886,0.00047905,4]
[356235560,1742115047797,-281.205,0.00047905,4]
[356235561,1742115047809,-2325.03286203,0.00047905,4]
[356235562,1742115047820,-711.6719425,0.00047905,4]
[356235563,1742115047832,-5329.88449763,0.00047905,4]
[356235564,1742115047841,-793.4293742,0.00047938,2]
[356235565,1742115047851,-500.0,0.00047943,120]
[356235566,1742115047860,-500.0,0.00047943,120]
[356235567,1742115047869,-622.5,0.00047943,120]
[356235568,1742115047879,-813.5929311,0.00047957,2]
[356235569,1742115047888,-833.756488,0.00047957,2]
[356235570,1742115047897,-17205.1584351,0.0004796,4]
[356235571,1742115047907,-34410.3168701,0.0004796,4]
[356235572,1742115047916,-853.9200449,0.00047967,2]
[356235573,1742115047925,-874.0836018,0.00047967,2]
[356235574,1742115047935,-34410.3168701,0.0004797,4]
[356235575,1742115047944,-20278.0470288,0.0004797,4]
[356235576,1742115047954,-17205.1584351,0.0004798,4]
[356235577,1742115047963,-150.42,0.0004798,2]
[356235578,1742115047973,-10139.0235144,0.0004798,4]
[356235579,1742115047983,-34410.3168701,0.0004799,4]
[356235580,1742115047992,-30417.0705432,0.0004799,4]
[356235581,1742115048003,-206461.901221,0.0004799,4]
[356235582,1742115048012,-263614.611375,0.0004799,4]
[356235583,1742115048022,-412.08,0.00047995,2]
[356235584,1742115048032,-2032.36457377,0.00047998,120]
[356235585,1742115048042,-1159.86393781,0.00047998,120]
[356235586,1742115048051,-295.81983506,0.00047998,120]
[356235587,1742115048059,-50000.0,0.00048,48]
[356235588,1742115048069,-209.7451308,0.00048,30]
[356235589,1742115048078,-500.0,0.00048,120]
[356235590,1742115048087,-541.23272246,0.00048,120]
[356235591,1742115048096,-505.00350024,0.00048,120]
[356235592,1742115048105,-1000.0,0.00048,120]
[356235593,1742115048114,-1988.39474217,0.00048,120]
[356235594,1742115048123,-644.9376274,0.00048,120]
[356235595,1742115048132,-150.0,0.00048,120]
[356235596,1742115048142,-750.0,0.00048,120]
[356235597,1742115048151,-5000.0,0.00048,120]
[356235598,1742115048160,-5340.1615,0.00048,120]
[356235599,1742115048169,-5000.0,0.00048,120]
[356235600,1742115048179,-10000.0,0.00048,30]
[356235601,1742115048188,-5000.0,0.00048,120]
[356235602,1742115048198,-502992.59527771,0.00048,120]
[356235603,1742115048207,-966.71013686,0.00048,120]
[356235604,1742115048217,-3443.34,0.00048023,120]
[356235605,1742115048413,-10139.0235144,0.00048085,4]
[356235606,1742115048423,-500.0,0.00048094,120]
[356235607,1742115048434,-500.0,0.00048094,120]
[356235608,1742115048445,-500.0,0.00048094,120]
[356235609,1742115048456,-500.0,0.00048094,120]
[356235610,1742115048466,-500.0,0.00048094,120]
[356235611,1742115048475,-500.0,0.00048094,120]
[356235612,1742115048485,-500.0,0.00048094,120]
[356235613,1742115048496,-500.0,0.00048094,120]
[356235614,1742115048506,-548.93,0.00048094,2]
[356235615,1742115048515,-500.0,0.00048094,120]
[356235616,1742115048525,-500.0,0.00048094,100]
[356235617,1742115048534,-500.0,0.00048094,120]
[356235618,1742115048543,-500.0,0.00048094,120]
[356235619,1742115048553,-500.0,0.00048094,120]
[356235620,1742115048563,-500.0,0.00048094,120]
[356235621,1742115048573,-500.0,0.00048095,120]
[356235622,1742115048583,-500.0,0.00048095,120]
[356235623,1742115048592,-500.0,0.00048095,120]
[356235624,1742115048602,-500.0,0.00048095,120]
[356235625,1742115048613,-500.0,0.00048095,120]
[356235626,1742115048623,-500.0,0.00048095,120]
[356235627,1742115048633,-500.0,0.00048095,7]
[356235628,1742115048642,-500.0,0.00048095,120]
[356235629,1742115048652,-500.0,0.00048095,120]
[356235630,1742115048662,-500.0,0.00048095,120]
[356235631,1742115048671,-500.0,0.00048095,120]
[356235632,1742115048681,-411.55960027,0.00048095,120]
[356235633,1742115048691,-173.74482787,0.0004815,31]
[356235634,1742115048701,-639.55621128,0.000482,120]
[356235635,1742115048711,-500.0,0.00048217,120]
[356235636,1742115048721,-500.0,0.00048217,120]
[356235637,1742115048731,-622.5,0.00048217,120]
[356235638,1742115048740,-478.47712697,0.000483,120]
[356235639,1742115048750,-1338.83335834,0.00048309,120]
[356235640,1742115048760,-500.0,0.00048368,120]
[356235641,1742115048770,-500.0,0.00048368,120]
[356235642,1742115048779,-500.0,0.00048368,120]
[356235643,1742115048788,-500.0,0.00048368,120]
[356235644,1742115048798,-500.0,0.00048368,120]
[356235645,1742115048808,-500.0,0.00048368,120]
[356235646,1742115048817,-500.0,0.00048368,120]
[356235647,1742115048826,-500.0,0.00048368,120]
[356235648,1742115048836,-548.93,0.00048368,2]
[356235649,1742115048845,-500.0,0.00048368,120]
[356235650,1742115048855,-500.0,0.00048368,100]
[356235651,1742115048864,-352.9,0.00048368,120]
[356235652,1742115048873,-500.0,0.00048368,120]
[356235653,1742115048881,-500.0,0.00048368,120]
[356235654,1742115048890,-500.0,0.00048368,120]
[356235655,1742115048899,-500.0,0.00048369,120]
[356235656,1742115048909,-500.0,0.00048369,120]
[356235657,1742115048919,-500.0,0.00048369,120]
[356235658,1742115048931,-500.0,0.00048369,120]
[356235659,1742115048941,-500.0,0.00048369,120]
[356235660,1742115048950,-298.49550944,0.00048369,120]
[356235661,1742115048960,-500.0,0.00048369,7]
[356235662,1742115048969,-612.54335353,0.00048369,120]
[356235663,1742115048980,-500.0,0.00048369,120]
[356235664,1742115048989,-500.0,0.00048369,120]
[356235665,1742115048999,-162.58467914,0.00048369,120]
[356235666,1742115049008,-173.74482787,0.000484,32]
[356235667,1742115049017,-5600.0,0.000484,17]
[356235668,1742115049026,-303.12976485,0.00048486,11]
[356235669,1742115049036,-500.0,0.00048491,120]
[356235670,1742115049045,-425.48623553,0.00048491,120]
[356235671,1742115049055,-622.5,0.00048491,120]
[356235672,1742115049065,-2500.0,0.000485,100]
[356235673,1742115049075,-7500.0,0.000485,17]
[356235674,1742115049084,-167.27035013,0.000486,24]
[356235675,1742115049094,-9300.0,0.000486,17]
[356235676,1742115049103,-500.0,0.00048642,120]
[356235677,1742115049113,-500.0,0.00048642,120]
[356235678,1742115049123,-282.15096432,0.00048642,120]
[356235679,1742115049132,-500.0,0.00048642,120]
[356235680,1742115049142,-500.0,0.00048642,120]
[356235681,1742115049151,-500.0,0.00048642,120]
[356235682,1742115049160,-500.0,0.00048642,120]
[356235683,1742115049171,-500.0,0.00048642,120]
[356235684,1742115049180,-548.93,0.00048642,2]
[356235685,1742115049189,-500.0,0.00048642,120]
[356235686,1742115049199,-500.0,0.00048642,100]
[356235687,1742115049208,-500.0,0.00048642,120]
[356235688,1742115049223,-500.0,0.00048642,120]
[356235689,1742115049233,-500.0,0.00048642,120]
[356235690,1742115049242,-500.0,0.00048643,120]
[356235691,1742115049252,-500.0,0.00048643,120]
[356235692,1742115049263,-500.0,0.00048643,120]
[356235693,1742115049272,-500.0,0.00048643,120]
[356235694,1742115049282,-500.0,0.00048643,120]
[356235695,1742115049293,-500.0,0.00048643,7]
[356235696,1742115049302,-226.74507229,0.00048643,120]
[356235697,1742115049311,-614.0877579,0.00048643,120]
[356235698,1742115049321,-173.74482787,0.0004865,33]
[356235699,1742115049331,-150.0,0.000487,120]
[356235700,1742115049341,-235.34119,0.000487,120]
[356235701,1742115049351,-1800.0,0.000487,17]
[356235702,1742115049361,-500.0,0.00048765,120]
[356235703,1742115049370,-622.5,0.00048765,120]
[356235704,1742115049380,-1292.24769555,0.000488,120]
[356235705,1742115049390,-2437.92508865,0.000488,120]
[356235706,1742115049401,-823.27492826,0.000488,120]
[356235707,1742115049415,-244.71563948,0.000488,120]
[356235708,1742115049424,-1800.0,0.000488,17]
[356235709,1742115049433,-50000.0,0.0004883,120]
[356235710,1742115049443,-267.66007187,0.0004888,120]
[356235711,1742115049453,-7407.72,0.000489,120]
[356235712,1742115049463,-169.25835046,0.000489,120]
[356235713,1742115049473,-1520.67165962,0.000489,2]
[356235714,1742115049482,-925.31915175,0.000489,7]
[356235715,1742115049494,-1167.80615523,0.000489,120]
[356235716,1742115049504,-173.74482787,0.000489,34]
[356235717,1742115049514,-1800.0,0.000489,17]
[356235718,1742115049523,-180.85154486,0.000489,120]
[356235719,1742115049534,-180.85154486,0.000489,120]
[356235720,1742115049543,-180.85154486,0.000489,120]
[356235721,1742115049552,-180.85154486,0.000489,120]
[356235722,1742115049561,-180.85154486,0.000489,120]
[356235723,1742115049571,-180.85154486,0.000489,120]
[356235724,1742115049581,-180.85154486,0.000489,120]
[356235725,1742115049591,-180.85154486,0.000489,120]
[356235726,1742115049601,-180.85154486,0.000489,120]
[356235727,1742115049610,-180.85154486,0.000489,120]
[356235728,1742115049619,-180.85154486,0.000489,120]
[356235729,1742115049629,-180.85154486,0.000489,120]
[356235730,1742115049639,-180.85154486,0.000489,120]
[356235731,1742115049648,-180.85154486,0.000489,120]
[356235732,1742115049658,-180.85154486,0.000489,120]
[356235733,1742115049668,-180.85154486,0.000489,120]
[356235734,1742115049678,-180.85154486,0.000489,120]
[356235735,1742115049688,-180.85154486,0.000489,120]
[356235736,1742115049698,-180.85154486,0.000489,120]
[356235737,1742115049707,-180.85,0.000489,120]
[356235738,1742115049717,-421.986938,0.000489,120]
[356235739,1742115049726,-421.986938,0.000489,120]
[356235740,1742115049735,-421.986938,0.000489,120]
[356235741,1742115049746,-421.986938,0.000489,120]
[356235742,1742115049756,-421.986938,0.000489,120]
[356235743,1742115049766,-421.986938,0.000489,120]
[356235744,1742115049775,-421.986938,0.000489,120]
[356235745,1742115049785,-421.986938,0.000489,120]
[356235746,1742115049794,-421.986938,0.000489,120]
[356235747,1742115049804,-421.986938,0.000489,120]
[356235748,1742115049813,-421.986938,0.000489,120]
[356235749,1742115049823,-421.986938,0.000489,120]
[356235750,1742115049832,-421.986938,0.000489,120]
[356235751,1742115049840,-421.986938,0.000489,120]
[356235752,1742115049850,-421.986938,0.000489,120]
[356235753,1742115049859,-421.986938,0.000489,120]
[356235754,1742115049869,-421.986938,0.000489,120]
[356235755,1742115049878,-421.986938,0.000489,120]
[356235756,1742115049887,-421.986938,0.000489,120]
[356235757,1742115049896,-421.98,0.000489,120]
[356235758,1742115049905,-157.95474258,0.000489,120]
[356235759,1742115049915,-157.95474258,0.000489,120]
[356235760,1742115049923,-157.95474258,0.000489,120]
[356235761,1742115049933,-157.95474258,0.000489,120]
[356235762,1742115049942,-157.95474258,0.000489,120]
[356235763,1742115049952,-157.95474258,0.000489,120]
[356235764,1742115049962,-157.95474258,0.000489,120]
[356235765,1742115049972,-157.95474258,0.000489,120]
[356235766,1742115049982,-157.95474258,0.000489,120]
[356235767,1742115049991,-157.95474258,0.000489,120]
[356235768,1742115050000,-157.95474258,0.000489,120]
[356235769,1742115050010,-157.95474258,0.000489,120]
[356235770,1742115050019,-157.95474258,0.000489,120]
[356235771,1742115050029,-157.95474258,0.000489,120]
[356235772,1742115050038,-157.95474258,0.000489,120]
[356235773,1742115050047,-157.95,0.000489,120]
[356235774,1742115050056,-294.84885281,0.000489,120]
[356235775,1742115050065,-294.84885281,0.000489,120]
[356235776,1742115050074,-294.84885281,0.000489,120]
[356235777,1742115050083,-294.84885281,0.000489,120]
[356235778,1742115050093,-294.84885281,0.000489,120]
[356235779,1742115050102,-294.84885281,0.000489,120]
[356235780,1742115050111,-294.84885281,0.000489,120]
[356235781,1742115050121,-294.84885281,0.000489,120]
[356235782,1742115050130,-294.84885281,0.000489,120]
[356235783,1742115050139,-294.84885281,0.000489,120]
[356235784,1742115050149,-294.84885281,0.000489,120]
[356235785,1742115050159,-294.84885281,0.000489,120]
[356235786,1742115050168,-294.84885281,0.000489,120]
[356235787,1742115050177,-294.84885281,0.000489,120]
[356235788,1742115050186,-294.84885281,0.000489,120]
[356235789,1742115050195,-294.84885281,0.000489,120]
[356235790,1742115050205,-294.84885281,0.000489,120]
[356235791,1742115050215,-294.84885281,0.000489,120]
[356235792,1742115050225,-294.84885281,0.000489,120]
[356235793,1742115050235,-294.84,0.000489,120]
[356235794,1742115050245,-1177.55941134,0.000489,2]
[356235795,1742115050254,-2032.54817809,0.000489,2]
[356235796,1742115050263,-309.43039862,0.000489,2]
[356235797,1742115050273,-500.0,0.00048916,120]
[356235798,1742115050283,-500.0,0.00048916,120]
[356235799,1742115050292,-500.0,0.00048916,120]
[356235800,1742115050302,-382.78045915,0.00048916,120]
[356235801,1742115050313,-500.0,0.00048916,120]
[356235802,1742115050323,-500.0,0.00048916,120]
[356235803,1742115050334,-252.03890277,0.00048916,120]
[356235804,1742115050344,-548.93,0.00048916,2]
[356235805,1742115050354,-249.13056958,0.00048916,120]
[356235806,1742115050363,-500.0,0.00048916,100]
[356235807,1742115050372,-500.0,0.00048916,120]
[356235808,1742115050382,-500.0,0.00048916,120]
[356235809,1742115050392,-500.0,0.00048916,120]
[356235810,1742115050401,-500.0,0.00048917,120]
[356235811,1742115050415,-500.0,0.00048917,120]
[356235812,1742115050424,-500.0,0.00048917,120]
[356235813,1742115050433,-500.0,0.00048917,120]
[356235814,1742115050443,-500.0,0.00048917,120]